fUST/lending_fUST_20241220
["ID","MTS","AMOUNT","RATE_DAILY","PERIOD"]
[346075742,1734693072226,-500.0,0.00022739,6]
[346075743,1734693072235,-816.89,0.00022739,6]
[346075744,1734693072244,-500.0,0.00022739,6]
[346075745,1734693072254,-1486.6,0.00022739,6]
[346075746,1734693072263,-683.88,0.00022739,6]
[346075747,1734693072272,-500.0,0.00022739,6]
[346075748,1734693072281,-500.0,0.00022739,6]
[346075749,1734693072290,-500.0,0.00022739,6]
[346075750,1734693072299,-500.0,0.00022739,6]
[346075751,1734693072309,-500.0,0.00022739,6]
[346075752,1734693072319,-3350.69,0.00022739,6]
[346075753,1734693072328,-500.0,0.00022739,6]
[346075754,1734693072337,-3984.39,0.00022739,6]
[346075755,1734693072346,-253.07769922,0.00022739,6]
[346075756,1734693072356,-636.36554034,0.00022739,6]
[346075757,1734693072365,-500.0,0.00022739,6]
[346075758,1734693072374,-500.0,0.00022739,6]
[346075759,1734693072383,-657.82,0.00022739,6]
[346075760,1734693072393,-500.0,0.00022739,6]
[346075761,1734693072402,-500.0,0.00022739,6]
[346075762,1734693072412,-908.77,0.00022739,6]
[346075763,1734693072424,-3922.68197,0.00022739,7]
[346075764,1734693072434,-3922.68197,0.00022739,7]
[346075765,1734693072445,-500.0,0.00022739,6]
[346075766,1734693072454,-3922.68197,0.00022739,7]
[346075767,1734693072464,-3922.68197,0.00022739,7]
[346075768,1734693072474,-500.0,0.00022739,6]
[346075769,1734693072483,-500.0,0.00022739,6]
[346075770,1734693072493,-628.05,0.00022739,6]
[346075771,1734693072503,-500.0,0.00022739,6]
[346075772,1734693072512,-500.0,0.00022739,6]
[346075773,1734693072522,-579.5,0.00022739,6]
[346075774,1734693072531,-162.087698,0.00022739,7]
[346075775,1734693072541,-3405.57585,0.00022739,7]
[346075776,1734693072550,-162.087698,0.00022739,7]
[346075777,1734693072559,-3405.57585,0.00022739,7]
[346075778,1734693072568,-750.31,0.00022739,6]
[346075779,1734693072578,-519.61,0.00022739,6]
[346075780,1734693072587,-500.0,0.00022739,6]
[346075781,1734693072596,-2341.45,0.00022739,6]
[346075782,1734693072606,-3405.57585,0.00022739,7]
[346075783,1734693072748,-703.35,0.00022739,6]
[346075784,1734693072759,-3405.57585,0.00022739,7]
[346075785,1734693072769,-325.88697471,0.00022739,6]
[346075786,1734693072779,-846.66,0.00022739,6]
[346075787,1734693072788,-500.0,0.00022739,6]
[346075788,1734693072798,-558.24,0.00022739,6]
[346075789,1734693072808,-500.0,0.00022739,6]
[346075790,1734693072817,-784.95,0.00022739,6]
[346075791,1734693072826,-500.0,0.00022739,6]
[346075792,1734693072836,-929.35,0.00022739,6]
[346075793,1734693072845,-604.25395962,0.00022739,6]
[346075794,1734693072854,-500.0,0.00022739,6]
[346075795,1734693072864,-2078.12,0.00022739,6]
[346075796,1734693072873,-500.0,0.00022739,6]
[346075797,1734693072883,-500.0,0.00022739,6]
[346075798,1734693072892,-2253.32,0.00022739,6]
[346075799,1734693072902,-753.77,0.00022739,6]
[346075800,1734693072911,-1958.52,0.00022739,6]
[346075801,1734693072920,-928.58,0.00022739,6]
[346075802,1734693072930,-500.0,0.00022739,6]
[346075803,1734693072943,-500.0,0.00022739,6]
[346075804,1734693072953,-2612.84,0.00022739,6]
[346075805,1734693072962,-283.033407,0.00022739,7]
[346075806,1734693072972,-816.69,0.00022739,6]
[346075807,1734693072981,-283.033407,0.00022739,7]
[346075808,1734693072990,-500.0,0.00022739,6]
[346075809,1734693073000,-283.033407,0.00022739,7]
[346075810,1734693073010,-283.033407,0.00022739,7]
[346075811,1734693073019,-942.58,0.00022739,6]
[346075812,1734693073029,-998.57,0.00022739,6]
[346075813,1734693073038,-500.0,0.00022739,6]
[346075814,1734693073048,-500.0,0.00022739,6]
[346075815,1734693073057,-3375.68,0.00022739,6]
[346075816,1734693073066,-151.0,0.00022739,7]
[346075817,1734693073075,-3019.62,0.00022739,6]
[346075818,1734693073084,-591.11,0.00022739,6]
[346075819,1734693073094,-151.0,0.00022739,7]
[346075820,1734693073103,-500.0,0.00022739,6]
[346075821,1734693073112,-829.78,0.00022739,6]
[346075822,1734693073121,-500.0,0.00022739,6]
[346075823,1734693073131,-2878.24,0.00022739,6]
[346075824,1734693073140,-500.0,0.00022739,6]
[346075825,1734693073149,-870.11,0.00022739,6]
[346075826,1734693073158,-500.0,0.00022739,6]
[346075827,1734693073167,-500.0,0.00022739,6]
[346075828,1734693073177,-500.0,0.00022739,6]
[346075829,1734693073186,-2093.85,0.00022739,6]
[346075830,1734693073198,-561.5,0.00022739,6]
[346075831,1734693073207,-1000.0,0.00022739,6]
[346075832,1734693073216,-500.0,0.00022739,6]
[346075833,1734693073225,-575.58,0.00022739,6]
[346075834,1734693073235,-520.62194163,0.00022739,6]
[346075835,1734693073244,-500.0,0.00022739,6]
[346075836,1734693073253,-191.31895204,0.00022739,6]
[346075837,1734693073263,-606.38,0.00022739,6]
[346075838,1734693073272,-500.0,0.00022739,6]
[346075839,1734693073281,-500.0,0.00022739,6]
[346075840,1734693073291,-440.29326517,0.00022739,6]
[346075841,1734693073299,-1051.37,0.00022739,6]
[346075842,1734693073309,-500.0,0.00022739,6]
[346075843,1734693073319,-500.0,0.00022739,6]
[346075844,1734693073329,-605.01,0.00022739,6]
[346075845,1734693073339,-202.17774118,0.00022739,6]
[346075846,1734693073348,-1895.2,0.00022739,6]
[346075847,1734693073358,-1304.77,0.00022739,6]
[346075848,1734693073367,-978.44,0.00022739,6]
[346075849,1734693073377,-500.0,0.00022739,6]
[346075850,1734693073387,-500.0,0.00022739,6]
[346075851,1734693073396,-186.82888,0.00022739,7]
[346075852,1734693073411,-186.82888,0.00022739,7]
[346075853,1734693073421,-151.0,0.00022739,7]
[346075854,1734693073430,-823.06,0.00022739,6]
[346075855,1734693073440,-1110.35,0.00022739,6]
[346075856,1734693073453,-15620.31,0.00022739,6]
[346075857,1734693073462,-3107.96,0.00022739,6]
[346075858,1734693073471,-186.82888,0.00022739,7]
[346075859,1734693073480,-189.753428,0.00022739,7]
[346075860,1734693073490,-186.82888,0.00022739,7]
[346075861,1734693073499,-189.753428,0.00022739,7]
[346075862,1734693073509,-1979.3,0.00022739,6]
[346075863,1734693073518,-506.03612068,0.00022739,6]
[346075864,1734693073528,-189.753428,0.00022739,7]
[346075865,1734693073538,-189.753428,0.00022739,7]
[346075866,1734693073547,-215.3300875,0.00022739,2]
[346075867,1734693073556,-1698.36,0.00022739,6]
[346075868,1734693073566,-1217.27,0.00022739,6]
[346075869,1734693073575,-500.0,0.00022739,6]
[346075870,1734693073584,-1129.89,0.00022739,6]
[346075871,1734693073593,-506.43871997,0.00022739,6]
[346075872,1734693073603,-500.0,0.00022739,6]
[346075873,1734693073612,-3084.04,0.00022739,6]
[346075874,1734693073621,-611.22,0.00022739,6]
[346075875,1734693073630,-500.0,0.00022739,6]
[346075876,1734693073639,-500.0,0.00022739,6]
[346075877,1734693073648,-500.0,0.00022739,6]
[346075878,1734693073657,-1273.08209,0.00022739,7]
[346075879,1734693073666,-1273.08209,0.00022739,7]
[346075880,1734693073675,-514.9,0.00022739,6]
[346075881,1734693073684,-1079.40644,0.00022739,7]
[346075882,1734693073695,-749.85,0.00022739,6]
[346075883,1734693073704,-1273.08209,0.00022739,7]
[346075884,1734693073714,-1709.27,0.00022739,6]
[346075885,1734693073723,-1273.08209,0.00022739,7]
[346075886,1734693073732,-1079.40644,0.00022739,7]
[346075887,1734693073742,-555.57562793,0.00022739,6]
[346075888,1734693073751,-631.5,0.00022739,6]
[346075889,1734693073760,-3926.23,0.00022739,6]
[346075890,1734693073770,-500.0,0.00022739,6]
[346075891,1734693073779,-681.759088,0.00022739,7]
[346075892,1734693073788,-8032.25,0.00022739,6]
[346075893,1734693073797,-568.55008539,0.00022739,6]
[346075894,1734693073807,-500.0,0.00022739,6]
[346075895,1734693073816,-681.759088,0.00022739,7]
[346075896,1734693073825,-957.95,0.00022739,6]
[346075897,1734693073835,-647.04,0.00022739,6]
[346075898,1734693073844,-151.0,0.00022739,7]
[346075899,1734693073853,-151.0,0.00022739,7]
[346075900,1734693073863,-500.0,0.00022739,6]
[346075901,1734693073872,-500.0,0.00022739,6]
[346075902,1734693073881,-151.0,0.00022739,7]
[346075903,1734693073891,-880.3,0.00022739,6]
[346075904,1734693073900,-161.173248,0.00022739,7]
[346075905,1734693073909,-828.99,0.00022739,6]
[346075906,1734693073918,-500.0,0.00022739,6]
[346075907,1734693073927,-500.0,0.00022739,6]
[346075908,1734693073937,-500.0,0.00022739,6]
[346075909,1734693073949,-500.0,0.00022739,6]
[346075910,1734693073959,-1556.66,0.00022739,2]
[346075911,1734693073968,-500.0,0.00022739,6]
[346075912,1734693073977,-772.83,0.00022739,6]
[346075913,1734693073986,-933.46,0.00022739,6]
[346075914,1734693073995,-500.0,0.00022739,6]
[346075915,1734693074004,-727.74,0.00022739,6]
[346075916,1734693074013,-505.39837513,0.00022739,6]
[346075917,1734693074023,-1507.13,0.00022739,6]
[346075918,1734693074032,-628.91,0.00022739,6]
[346075919,1734693074041,-500.0,0.00022739,6]
[346075920,1734693074050,-500.0,0.00022739,6]
[346075921,1734693074059,-1026.99,0.00022739,6]
[346075922,1734693074068,-20507.92,0.00022739,6]
[346075923,1734693074078,-1914.41,0.00022739,6]
[346075924,1734693074087,-351.01012316,0.00022739,6]
[346075925,1734693074095,-945.69,0.00022739,6]
[346075926,1734693074105,-769.8,0.00022739,6]
[346075927,1734693074114,-31690.43,0.00022739,6]
[346075928,1734693074123,-505.74017336,0.00022739,6]
[346075929,1734693074132,-10891.37,0.00022739,6]
[346075930,1734693074142,-521.18112735,0.00022739,6]
[346075931,1734693074151,-500.0,0.00022739,6]
[346075932,1734693074160,-1881.92,0.00022739,6]
[346075933,1734693074169,-551.82,0.00022739,6]
[346075934,1734693074179,-500.0,0.00022739,6]
[346075935,1734693074188,-500.0,0.00022739,6]
[346075936,1734693074200,-741.52,0.00022739,6]
[346075937,1734693074209,-739.27,0.00022739,6]
[346075938,1734693074218,-571.93799222,0.00022739,6]
[346075939,1734693074231,-599.48,0.00022739,6]
[346075940,1734693074240,-151.0,0.00022739,7]
[346075941,1734693074249,-674.12,0.00022739,6]
[346075942,1734693074258,-500.0,0.00022739,6]
[346075943,1734693074267,-151.0,0.00022739,7]
[346075944,1734693074276,-500.0,0.00022739,6]
[346075945,1734693074285,-1525.74,0.00022739,6]
[346075946,1734693074294,-82254.19,0.00022739,6]
[346075947,1734693074302,-5572.46,0.00022739,6]
[346075948,1734693074311,-500.0,0.00022739,6]
[346075949,1734693074320,-567.46292465,0.00022739,6]
[346075950,1734693074329,-730.97,0.00022739,6]
[346075951,1734693074339,-623.84,0.00022739,6]
[346075952,1734693074348,-500.0,0.00022739,6]
[346075953,1734693074357,-12564.99,0.00022739,6]
[346075954,1734693074367,-500.0,0.00022739,6]
[346075955,1734693074380,-734.96,0.00022739,6]
[346075956,1734693074390,-500.0,0.00022739,6]
[346075957,1734693074399,-774.73,0.00022739,6]
[346075958,1734693074408,-5780.94,0.00022739,6]
[346075959,1734693074420,-836.63,0.00022739,6]
[346075960,1734693074429,-500.0,0.00022739,6]
[346075961,1734693074438,-500.0,0.00022739,6]
[346075962,1734693074453,-527.3,0.00022739,6]
[346075963,1734693074463,-5039.08,0.00022739,6]
[346075964,1734693074472,-500.0,0.00022739,6]
[346075965,1734693074481,-500.0,0.00022739,6]
[346075966,1734693074491,-2098.69,0.00022739,6]
[346075967,1734693074501,-1080.46,0.00022739,6]
[346075968,1734693074510,-648.6,0.00022739,6]
[346075969,1734693074520,-603.16,0.00022739,6]
[346075970,1734693074529,-4746.74,0.00022739,6]
[346075971,1734693074538,-500.0,0.00022739,6]
[346075972,1734693074547,-3087.43,0.00022739,6]
[346075973,1734693074556,-501.84,0.00022739,6]
[346075974,1734693074565,-1141.775585,0.00022739,7]
[346075975,1734693074574,-1141.775585,0.00022739,7]
[346075976,1734693074583,-895.12,0.00022739,6]
[346075977,1734693074592,-500.0,0.00022739,6]
[346075978,1734693074601,-1141.775585,0.00022739,7]
[346075979,1734693074610,-1141.775585,0.00022739,7]
[346075980,1734693074619,-906.86,0.00022739,6]
[346075981,1734693074628,-500.0,0.00022739,6]
[346075982,1734693074637,-645.86,0.00022739,6]
[346075983,1734693074646,-796.51,0.00022739,6]
[346075984,1734693074655,-4289.65,0.00022739,6]
[346075985,1734693074664,-1129.09,0.00022739,6]
[346075986,1734693074672,-641.11,0.00022739,6]
[346075987,1734693074682,-1127.64,0.00022739,6]
[346075988,1734693074691,-31466.27,0.00022739,6]
[346075989,1734693074703,-797.8,0.00022739,6]
[346075990,1734693074712,-500.0,0.00022739,6]
[346075991,1734693074721,-500.0,0.00022739,6]
[346075992,1734693074730,-506.15742995,0.00022739,6]
[346075993,1734693074739,-500.0,0.00022739,6]
[346075994,1734693074748,-996.74,0.00022739,6]
[346075995,1734693074757,-503.66835309,0.00022739,6]
[346075996,1734693074766,-500.0,0.00022739,6]
[346075997,1734693074775,-500.0,0.00022739,6]
[346075998,1734693074784,-1422.15,0.00022739,6]
[346075999,1734693074793,-500.0,0.00022739,6]
[346076000,1734693074802,-1104.77,0.00022739,6]
[346076001,1734693074811,-500.0,0.00022739,6]
[346076002,1734693074820,-505.39,0.00022739,6]
[346076003,1734693074829,-7845.89,0.00022739,6]
[346076004,1734693074838,-4838.119892,0.00022739,7]
[346076005,1734693074847,-4838.119892,0.00022739,7]
[346076006,1734693074856,-953.99,0.00022739,6]
[346076007,1734693074865,-500.0,0.00022739,6]
[346076008,1734693074874,-500.0,0.00022739,6]
[346076009,1734693074883,-4838.119892,0.00022739,7]
[346076010,1734693074892,-4901.08,0.00022739,6]
[346076011,1734693074901,-4838.119892,0.00022739,7]
[346076012,1734693074910,-1667.65,0.00022739,6]
[346076013,1734693074919,-500.0,0.00022739,6]
[346076014,1734693074928,-162.4586486,0.00022739,6]
[346076015,1734693074937,-500.0,0.00022739,6]
[346076016,1734693074949,-500.0,0.00022739,6]
[346076017,1734693074958,-500.0,0.00022739,6]
[346076018,1734693074968,-989.18,0.00022739,6]
[346076019,1734693075106,-151.0,0.00022739,7]
[346076020,1734693075115,-151.0,0.00022739,7]
[346076021,1734693075124,-500.0,0.00022739,6]
[346076022,1734693075134,-871.64,0.00022739,6]
[346076023,1734693075143,-4701.04,0.00022739,6]
[346076024,1734693075153,-151.0,0.00022739,7]
[346076025,1734693075162,-151.0,0.00022739,7]
[346076026,1734693075171,-1915.75,0.00022739,6]
[346076027,1734693075180,-500.0,0.00022739,6]
[346076028,1734693075190,-10035.19,0.00022739,6]
[346076029,1734693075203,-507.65935094,0.00022739,6]
[346076030,1734693075212,-1877.64,0.00022739,6]
[346076031,1734693075222,-1244.76,0.00022739,2]
[346076032,1734693075231,-335.036907,0.00022739,7]
[346076033,1734693075241,-7749.62,0.00022739,6]
[346076034,1734693075250,-335.036907,0.00022739,7]
[346076035,1734693075259,-500.0,0.00022739,6]
[346076036,1734693075268,-500.0,0.00022739,6]
[346076037,1734693075278,-2173.89,0.00022739,6]
[346076038,1734693075287,-5377.96,0.00022739,6]
[346076039,1734693075296,-2633.81,0.00022739,6]
[346076040,1734693075306,-335.036907,0.00022739,7]
[346076041,1734693075315,-335.036907,0.00022739,7]
[346076042,1734693075324,-2682.03,0.00022739,6]
[346076043,1734693075334,-500.0,0.00022739,6]
[346076044,1734693075343,-500.0,0.00022739,6]
[346076045,1734693075352,-500.0,0.00022739,6]
[346076046,1734693075361,-500.0,0.00022739,6]
[346076047,1734693075371,-151.386173,0.00022739,7]
[346076048,1734693075380,-151.386173,0.00022739,7]
[346076049,1734693075389,-500.0,0.00022739,6]
[346076050,1734693075398,-151.0,0.00022739,7]
[346076051,1734693075409,-151.0,0.00022739,7]
[346076052,1734693075420,-568.8,0.00022739,6]
[346076053,1734693075429,-500.0,0.00022739,6]
[346076054,1734693075439,-500.0,0.00022739,6]
[346076055,1734693075454,-1371.8,0.00022739,6]
[346076056,1734693075463,-151.386173,0.00022739,7]
[346076057,1734693075472,-151.386173,0.00022739,7]
[346076058,1734693075482,-151.0,0.00022739,7]
[346076059,1734693075492,-171.796603,0.00022739,7]
[346076060,1734693075502,-500.0,0.00022739,6]
[346076061,1734693075512,-151.0,0.00022739,7]
[346076062,1734693075521,-151.0,0.00022739,7]
[346076063,1734693075530,-246.329835,0.00022739,7]
[346076064,1734693075539,-246.329835,0.00022739,7]
[346076065,1734693075549,-500.0,0.00022739,6]
[346076066,1734693075558,-4069.31,0.00022739,6]
[346076067,1734693075568,-500.0,0.00022739,6]
[346076068,1734693075577,-502.17208255,0.00022739,6]
[346076069,1734693075586,-4673.27,0.00022739,6]
[346076070,1734693075596,-500.0,0.00022739,6]
[346076071,1734693075605,-246.329835,0.00022739,7]
[346076072,1734693075614,-246.329835,0.00022739,7]
[346076073,1734693075623,-566.02,0.00022739,6]
[346076074,1734693075633,-2791.17,0.00022739,6]
[346076075,1734693075642,-503.87,0.00022739,6]
[346076076,1734693075651,-1647.66,0.00022739,6]
[346076077,1734693075660,-500.0,0.00022739,6]
[346076078,1734693075669,-500.0,0.00022739,6]
[346076079,1734693075679,-500.0,0.00022739,6]
[346076080,1734693075688,-650.66,0.00022739,6]
[346076081,1734693075701,-2005.93,0.00022739,6]
[346076082,1734693075711,-500.0,0.00022739,6]
[346076083,1734693075720,-537.75,0.00022739,6]
[346076084,1734693075729,-1424.07,0.00022739,6]
[346076085,1734693075739,-500.0,0.00022739,6]
[346076086,1734693075749,-907.39,0.00022739,6]
[346076087,1734693075758,-1508.58,0.00022739,6]
[346076088,1734693075768,-500.0,0.00022739,2]
[346076089,1734693075778,-668.4,0.00022739,6]
[346076090,1734693075788,-496.22511651,0.00022739,6]
[346076091,1734693075798,-564.28,0.00022739,6]
[346076092,1734693075807,-500.0,0.00022739,6]
[346076093,1734693075817,-1278.74,0.00022739,6]
[346076094,1734693075827,-800.05,0.00022739,6]
[346076095,1734693075837,-2906.3,0.00022739,6]
[346076096,1734693075847,-458.45132116,0.00022739,6]
[346076097,1734693075856,-432.83033955,0.00022739,2]
[346076098,1734693075865,-500.0,0.00022739,6]
[346076099,1734693075875,-1066.82,0.00022739,6]
[346076100,1734693075884,-4154.09,0.00022739,6]
[346076101,1734693075893,-2034.35,0.00022739,6]
[346076102,1734693075903,-156.44854133,0.00022795,2]
[346076103,1734693075912,-1480.54287505,0.0002281,2]
[346076104,1734693075921,-151.0,0.00022864,6]
[346076105,1734693075930,-1706.28140241,0.00023,4]
[346076106,1734693075940,-16348.84608716,0.00023,3]
[346076107,1734693075953,-151.0,0.00023012,7]
[346076108,1734693075963,-151.0,0.00023012,7]
[346076109,1734693075972,-151.0,0.00023012,7]
[346076110,1734693075981,-151.0,0.00023012,7]
[346076111,1734693075991,-151.0,0.00023012,7]
[346076112,1734693076000,-151.0,0.00023012,7]
[346076113,1734693076009,-151.0,0.00023012,7]
[346076114,1734693076019,-305.149825,0.00023012,7]
[346076115,1734693076028,-305.149825,0.00023012,7]
[346076116,1734693076037,-409.274072,0.00023012,7]
[346076117,1734693076046,-409.274072,0.00023012,7]
[346076118,1734693076056,-151.0,0.00023013,7]
[346076119,1734693076065,-151.0,0.00023013,7]
[346076120,1734693076074,-151.0,0.00023013,7]
[346076121,1734693076084,-475.39579106,0.00023013,6]
[346076122,1734693076093,-151.0,0.00023013,7]
[346076123,1734693076102,-151.0,0.00023013,7]
[346076124,1734693076112,-151.0,0.00023013,7]
[346076125,1734693076121,-151.0,0.00023013,7]
[346076126,1734693076131,-151.0,0.00023013,7]
[346076127,1734693076140,-305.149825,0.00023013,7]
[346076128,1734693076149,-305.149825,0.00023013,7]
[346076129,1734693076158,-409.274072,0.00023013,7]
[346076130,1734693076167,-409.274072,0.00023013,7]
[346076131,1734693076177,-500.0,0.00023013,6]
[346076132,1734693076186,-500.0,0.00023013,6]
[346076133,1734693076197,-500.0,0.00023013,6]
[346076134,1734693076207,-216.16557309,0.00023013,6]
[346076135,1734693076217,-602.42,0.00023013,6]
[346076136,1734693076226,-500.0,0.00023013,6]
[346076137,1734693076236,-500.48862691,0.00023013,6]
[346076138,1734693076245,-500.0,0.00023013,6]
[346076139,1734693076254,-500.0,0.00023013,6]
[346076140,1734693076264,-1144.54,0.00023013,6]
[346076141,1734693076274,-500.0,0.00023013,6]
[346076142,1734693076283,-1262.667456,0.00023013,7]
[346076143,1734693076292,-500.0,0.00023013,6]
[346076144,1734693076301,-500.0,0.00023013,6]
[346076145,1734693076311,-502.23,0.00023013,6]
[346076146,1734693076321,-500.0,0.00023013,6]
[346076147,1734693076330,-500.0,0.00023013,6]
[346076148,1734693076339,-324.54280222,0.00023013,6]
[346076149,1734693076349,-500.0,0.00023013,6]
[346076150,1734693076358,-500.0,0.00023013,6]
[346076151,1734693076368,-500.0,0.00023013,6]
[346076152,1734693076377,-504.17,0.00023013,6]
[346076153,1734693076386,-500.0,0.00023013,6]
[346076154,1734693076397,-649.76,0.00023013,6]
[346076155,1734693076408,-660.53,0.00023013,6]
[346076156,1734693076419,-500.0,0.00023013,6]
[346076157,1734693076428,-1017.84,0.00023013,6]
[346076158,1734693076438,-365.239564,0.00023013,7]
[346076159,1734693076450,-500.0,0.00023013,6]
[346076160,1734693076461,-884.09,0.00023013,6]
[346076161,1734693076470,-365.239564,0.00023013,7]
[346076162,1734693076479,-500.0,0.00023013,6]
[346076163,1734693076489,-500.0,0.00023013,6]
[346076164,1734693076501,-500.0,0.00023013,6]
[346076165,1734693076511,-339.519478,0.00023013,7]
[346076166,1734693076520,-308.60667686,0.00023013,6]
[346076167,1734693076530,-500.0,0.00023013,6]
[346076168,1734693076539,-339.519478,0.00023013,7]
[346076169,1734693076549,-500.0,0.00023013,6]
[346076170,1734693076559,-500.0,0.00023013,6]
[346076171,1734693076568,-500.0,0.00023013,6]
[346076172,1734693076577,-503.33206767,0.00023013,6]
[346076173,1734693076587,-500.0,0.00023013,6]
[346076174,1734693076596,-800.6,0.00023013,6]
[346076175,1734693076605,-634.34,0.00023013,6]
[346076176,1734693076615,-330.21893036,0.00023013,6]
[346076177,1734693076624,-957.36,0.00023013,6]
[346076178,1734693076634,-500.0,0.00023013,6]
[346076179,1734693076643,-505.19010218,0.00023013,6]
[346076180,1734693076652,-500.0,0.00023013,6]
[346076181,1734693076661,-500.0,0.00023013,6]
[346076182,1734693076671,-500.0,0.00023013,6]
[346076183,1734693076680,-500.0,0.00023013,6]
[346076184,1734693076689,-1728.45,0.00023013,6]
[346076185,1734693076699,-500.0,0.00023013,6]
[346076186,1734693076709,-500.0,0.00023013,6]
[346076187,1734693076718,-437.27524,0.00023013,7]
[346076188,1734693076728,-437.27524,0.00023013,7]
[346076189,1734693076738,-505.56482017,0.00023013,6]
[346076190,1734693076748,-437.27524,0.00023013,7]
[346076191,1734693076758,-437.27524,0.00023013,7]
[346076192,1734693076767,-500.0,0.00023013,6]
[346076193,1734693076777,-500.0,0.00023013,6]
[346076194,1734693076786,-723.0,0.00023013,6]
[346076195,1734693076795,-1023.35,0.00023013,6]
[346076196,1734693076804,-565.08,0.00023013,6]
[346076197,1734693076817,-484.29693426,0.00023013,6]
[346076198,1734693076830,-377.89581453,0.00023013,6]
[346076199,1734693076846,-500.0,0.00023013,6]
[346076200,1734693076858,-500.0,0.00023013,6]
[346076201,1734693076867,-4532.594349,0.00023013,7]
[346076202,1734693076876,-4532.594349,0.00023013,7]
[346076203,1734693076885,-454.84170633,0.00023013,6]
[346076204,1734693076894,-500.0,0.00023013,6]
[346076205,1734693076903,-500.0,0.00023013,6]
[346076206,1734693076912,-1199.17,0.00023013,6]
[346076207,1734693076921,-500.0,0.00023013,6]
[346076208,1734693076930,-500.0,0.00023013,6]
[346076209,1734693076940,-507.0570203,0.00023013,6]
[346076210,1734693076954,-592.75,0.00023013,6]
[346076211,1734693076963,-500.0,0.00023013,6]
[346076212,1734693076971,-500.0,0.00023013,6]
[346076213,1734693076981,-500.0,0.00023013,6]
[346076214,1734693076989,-500.0,0.00023013,6]
[346076215,1734693076998,-765.62,0.00023013,6]
[346076216,1734693077008,-500.0,0.00023013,6]
[346076217,1734693077018,-500.0,0.00023013,6]
[346076218,1734693077027,-500.0,0.00023013,6]
[346076219,1734693077038,-1006.14,0.00023013,6]
[346076220,1734693077047,-500.0,0.00023013,6]
[346076221,1734693077056,-500.0,0.00023013,6]
[346076222,1734693077065,-887.36,0.00023013,6]
[346076223,1734693077075,-500.0,0.00023013,6]
[346076224,1734693077084,-1902.09,0.00023013,6]
[346076225,1734693077093,-500.0,0.00023013,6]
[346076226,1734693077102,-500.0,0.00023013,6]
[346076227,1734693077111,-1156.92,0.00023013,6]
[346076228,1734693077120,-500.0,0.00023013,6]
[346076229,1734693077129,-508.90507156,0.00023013,6]
[346076230,1734693077138,-208.099156,0.00023013,7]
[346076231,1734693077147,-523.85526545,0.00023013,6]
[346076232,1734693077157,-208.099156,0.00023013,7]
[346076233,1734693077166,-510.48544884,0.00023013,6]
[346076234,1734693077177,-505.01308766,0.00023013,6]
[346076235,1734693077187,-500.0,0.00023013,6]
[346076236,1734693077198,-506.21,0.00023013,6]
[346076237,1734693077331,-538.01,0.00023013,6]
[346076238,1734693077341,-500.0,0.00023013,6]
[346076239,1734693077350,-1161.97,0.00023013,6]
[346076240,1734693077360,-151.0,0.00023013,7]
[346076241,1734693077369,-500.0,0.00023013,6]